bitfinex/quotes_BTCUSD_20230117
["timestamp","ask_amount","ask_price","bid_price","bid_amount"]
[1673959928252,3.74615769,21224.0,21223.0,0.001]
[1673959928505,3.27748915,21224.0,21223.0,0.001]
[1673959928768,4.13417869,21224.0,21223.0,0.001]
[1673959929010,4.57119941,21224.0,21223.0,0.001]
[1673959929500,4.41804388,21224.0,21223.0,0.00083456]
[1673959929746,4.57135301,21224.0,21223.0,0.00083456]
[1673959930264,4.48778486,21224.0,21223.0,0.00083456]
[1673959930537,4.43878486,21224.0,21223.0,0.00083456]
[1673959930771,4.53078486,21224.0,21223.0,0.00083456]
[1673959931046,4.43878486,21224.0,21223.0,0.00083456]
[1673959931264,4.53078486,21224.0,21223.0,0.00083456]
[1673959931532,3.93319776,21224.0,21223.0,0.00083456]
[1673959931776,2.64697961,21224.0,21223.0,0.00083456]
[1673959932027,2.07468718,21224.0,21223.0,0.00083456]
[1673959932776,1.58898549,21224.0,21223.0,0.00083456]
[1673959933267,1.11782149,21224.0,21223.0,0.00083456]
[1673959933506,0.64665749,21224.0,21223.0,0.00083456]
[1673959933742,0.64665749,21224.0,21223.0,0.32186456]
[1673959934008,1.59502318,21224.0,21223.0,0.00083456]
[1673959934240,1.50302318,21224.0,21223.0,0.00083456]
[1673959934736,1.58602318,21224.0,21223.0,0.00183456]
[1673959935240,1.64337652,21224.0,21223.0,0.00083456]
[1673959935495,1.64337652,21224.0,21223.0,0.00183456]
[1673959935496,2.59786824,21224.0,21223.0,0.00183456]
[1673959935780,2.4859971,21224.0,21223.0,0.00183456]
[1673959936168,2.63056762,21224.0,21223.0,0.00183456]
[1673959936356,3.14032256,21224.0,21223.0,0.00183456]
[1673959936596,2.84061789,21224.0,21223.0,0.00183456]
[1673959937079,0.1,21223.0,21217.0,0.17081938]
[1673959937357,1.90700925,21222.0,21217.0,0.00981938]
[1673959937565,0.07478049,21221.0,21218.0,0.32103]
[1673959937822,0.54602449,21221.0,21218.0,0.32103]
[1673959938046,0.471244,21221.0,21218.0,0.32103]
[1673959938294,0.471244,21221.0,21219.0,0.32103]
[1673959938523,1.02423896,21222.0,21220.0,0.32103]
[1673959938801,1.02423896,21222.0,21221.0,0.32103]
[1673959938802,0.41257507,21222.0,21221.0,0.32103]
[1673959939783,2.53882351,21222.0,21217.0,0.00981938]
[1673959940027,0.35123955,21221.0,21217.0,0.00981938]
[1673959940270,1.04856456,21222.0,21217.0,0.33084938]
[1673959940501,0.64307089,21222.0,21219.0,0.0753]
[1673959940739,0.64307089,21222.0,21220.0,0.32103]
[1673959940740,0.50257507,21222.0,21220.0,0.32103]
[1673959940983,0.15914353,21224.0,21221.0,0.58705595]
[1673959941224,0.36988726,21224.0,21222.0,0.32103]
[1673959941473,0.36988726,21224.0,21223.0,0.32103]
[1673959941474,0.01864771,21224.0,21223.0,0.32103]
[1673959941724,1.10147253,21224.0,21223.0,0.32103]
[1673959941964,0.50326726,21221.0,21220.0,0.001]
[1673959942227,1.52050975,21221.0,21220.0,0.001]
[1673959942585,1.44572926,21221.0,21217.0,0.00981938]
[1673959942758,1.52050975,21221.0,21218.0,0.32103]
[1673959942981,1.44572926,21221.0,21218.0,0.32103]
[1673959943462,1.44572926,21221.0,21219.0,0.32103]
[1673959943724,1.45372926,21221.0,21220.0,0.32103]
[1673959943957,1.59425197,21221.0,21217.0,0.00981938]
[1673959944204,1.53750975,21221.0,21218.0,0.008]
[1673959944449,1.44572926,21221.0,21218.0,0.32103]
[1673959944691,1.8009957,21221.0,21219.0,0.007]
[1673959944917,1.7969957,21221.0,21218.0,0.32103]
[1673959945405,1.8049957,21221.0,21218.0,0.32103]
[1673959945894,1.59425197,21221.0,21218.0,0.32103]
[1673959946446,1.58625197,21221.0,21218.0,0.32103]
[1673959946690,0.47720169,21220.0,21218.0,0.32103]
[1673959946938,0.471275,21219.0,21217.0,0.00981938]
[1673959947181,1.05749826,21221.0,21218.0,0.096]
[1673959947422,0.083,21221.0,21219.0,0.32103]
[1673959947706,0.083,21221.0,21220.0,0.32103]
[1673959947936,0.15917042,21224.0,21220.0,0.39633]
[1673959948198,0.15917042,21224.0,21221.0,0.39613]
[1673959948441,0.01864771,21224.0,21222.0,0.32103]
[1673959948687,0.01864771,21224.0,21223.0,0.32103]
[1673959949910,0.21417042,21224.0,21223.0,0.32203]
[1673959950149,0.15917042,21224.0,21223.0,0.32103]
[1673959950407,0.57181171,21224.0,21223.0,0.32203]
[1673959950636,0.57181171,21224.0,21223.0,0.32103]
[1673959950873,0.54481171,21224.0,21223.0,0.32203]
[1673959951118,0.48981171,21224.0,21223.0,0.32103]
[1673959951875,0.84107815,21224.0,21223.0,0.32103]
[1673959952381,0.31139144,21224.0,21223.0,0.32203]
[1673959952606,0.22939144,21224.0,21223.0,0.32103]
[1673959952878,0.28439144,21224.0,21223.0,0.32203]
[1673959953104,0.22939144,21224.0,21223.0,0.32103]
[1673959953347,0.31139144,21224.0,21223.0,0.32203]
[1673959953583,0.31139144,21224.0,21223.0,0.32103]
[1673959953854,1.58959869,21224.0,21223.0,0.32203]
[1673959954083,1.3673269,21224.0,21219.0,0.31148802]
[1673959954312,1.31336366,21224.0,21220.0,0.32103]
[1673959954573,0.35135119,21223.0,21221.0,0.32103]
[1673959954827,0.35135119,21223.0,21222.0,0.32103]
[1673959955079,0.35135119,21223.0,21219.0,0.31148802]
[1673959955080,0.82254019,21223.0,21219.0,0.31148802]
[1673959955328,0.07478049,21222.0,21219.0,0.23678802]
[1673959955576,0.68661095,21222.0,21220.0,0.32103]
[1673959955828,0.68196673,21222.0,21221.0,0.32103]
[1673959956085,0.96284598,21222.0,21220.0,0.001]
[1673959956341,0.96284598,21222.0,21221.0,0.32103]
[1673959956342,0.471209,21222.0,21221.0,0.32103]
[1673959957097,0.526209,21222.0,21220.0,0.001]
[1673959957331,0.471209,21222.0,21219.0,0.23678802]
[1673959957584,0.471209,21222.0,21220.0,0.32103]
[1673959957823,0.471209,21222.0,21221.0,0.32103]
[1673959958577,0.526209,21222.0,21221.0,0.32203]
[1673959958814,0.526209,21222.0,21221.0,0.001]
[1673959959293,0.526209,21222.0,21221.0,0.32203]
[1673959959544,0.526209,21222.0,21221.0,0.32191923]
[1673959959799,0.055,21222.0,21221.0,0.32191923]
[1673959960048,0.055,21222.0,21221.0,0.39721923]
[1673959960549,0.055,21222.0,21221.0,0.86845023]
[1673959960805,0.055,21222.0,21221.0,1.43968123]
[1673959962340,0.055,21222.0,21221.0,1.76206975]
[1673959962621,0.055,21222.0,21221.0,2.06206975]
[1673959962888,0.01864771,21224.0,21222.0,0.1]
[1673959963112,0.01864771,21224.0,21223.0,1.338502]
[1673959963844,0.01864771,21224.0,21223.0,1.263402]
[1673959964092,0.01864771,21224.0,21223.0,1.338502]
[1673959966539,0.01864771,21224.0,21223.0,1.62460913]
[1673959966814,0.01864771,21224.0,21223.0,1.92460913]
[1673959967061,0.01864771,21224.0,21223.0,2.06492232]
[1673959967303,0.01864771,21224.0,21223.0,1.91492232]
[1673959967552,0.02064771,21224.0,21223.0,1.99080913]
[1673959969837,0.02064771,21224.0,21223.0,1.69080913]
[1673959970076,0.02064771,21224.0,21223.0,1.61590913]
[1673959970321,0.02064771,21224.0,21223.0,1.54060913]
[1673959971292,0.02064771,21224.0,21223.0,1.61590913]
[1673959971526,0.02064771,21224.0,21223.0,1.99060913]
[1673959971772,0.02064771,21224.0,21223.0,1.99076553]
[1673959973462,0.01034771,21224.0,21223.0,1.99076553]
[1673959973745,0.01034771,21224.0,21223.0,1.99981753]
[1673959974275,0.002,21224.0,21223.0,2.47100353]
[1673959974995,0.002,21224.0,21223.0,2.09614713]
[1673959975245,0.002,21224.0,21223.0,2.02084713]
[1673959975780,0.002,21224.0,21223.0,2.09594713]
[1673959976798,0.002,21224.0,21223.0,2.39594713]
[1673959977317,0.002,21224.0,21223.0,1.54966113]
[1673959979124,0.002,21224.0,21223.0,1.84966113]
[1673959979865,0.002,21224.0,21223.0,1.92416113]
[1673959983999,0.002,21224.0,21223.0,1.62416113]
[1673959984262,0.00189205,21224.0,21223.0,1.92416113]
[1673959984514,0.00189205,21224.0,21223.0,1.62416113]
[1673959988388,0.00189205,21224.0,21223.0,1.92416113]
[1673959988694,0.00189205,21224.0,21223.0,1.99876113]
[1673959989160,0.00189205,21224.0,21223.0,2.13907432]
[1673959989425,0.04925931,21228.0,21224.0,0.00209768]
[1673959989669,0.04925931,21228.0,21227.0,0.1499]
[1673959989957,0.40743289,21232.0,21227.0,2.3576851]
[1673959990171,0.40743289,21232.0,21230.0,0.0753]
[1673959990427,0.40743289,21232.0,21231.0,0.32103]
[1673959990690,0.45562111,21232.0,21231.0,0.32103]
[1673959990939,0.40743289,21232.0,21231.0,0.32103]
[1673959992479,0.003484,21233.0,21231.0,0.32103]
[1673959992717,0.003484,21233.0,21232.0,0.32103]
[1673959993478,0.003484,21233.0,21232.0,0.39613]
[1673959993996,0.003484,21233.0,21232.0,0.897117]
[1673959994520,0.003484,21233.0,21232.0,0.35103]
[1673959996536,0.003484,21233.0,21232.0,0.822017]
[1673959996788,0.003484,21233.0,21232.0,1.293004]
[1673960000183,0.003484,21233.0,21232.0,2.10151029]
[1673960000397,0.05250537,21236.0,21233.0,0.1]
[1673960000667,0.05250537,21236.0,21235.0,0.0753]
[1673960000922,0.00402099,21236.0,21235.0,1.33817]
[1673960001174,0.00402099,21236.0,21235.0,1.63817]
[1673960001423,0.00402099,21236.0,21235.0,1.71287]
[1673960001674,0.00402099,21236.0,21235.0,2.0581107]
[1673960002189,0.00402099,21236.0,21235.0,1.71287]
[1673960002441,0.00402099,21236.0,21235.0,2.0581107]
[1673960002682,0.00402099,21236.0,21235.0,1.9674756]
[1673960002937,0.00402099,21236.0,21235.0,2.0594756]
[1673960003195,0.00402099,21236.0,21235.0,1.7594756]
[1673960003485,0.00402099,21236.0,21235.0,1.6841756]
[1673960004041,0.00402099,21236.0,21235.0,1.5921756]
[1673960004304,0.00402099,21236.0,21235.0,1.59206286]
[1673960004586,0.00402099,21236.0,21235.0,1.68406286]
[1673960004853,0.00402099,21236.0,21235.0,1.98406286]
[1673960005425,0.07880148,21236.0,21235.0,1.35475726]
[1673960005692,0.98709317,21236.0,21231.0,0.28536111]
[1673960005967,0.51731468,21236.0,21235.0,0.084]
[1673960006238,0.44241468,21236.0,21235.0,0.40493]
[1673960006985,0.59109517,21236.0,21231.0,0.28536111]
[1673960006987,0.59109517,21236.0,21231.0,0.37036111]
[1673960006988,0.51731468,21236.0,21231.0,0.37036111]
[1673960007245,0.0745,21234.0,21231.0,0.28536111]
[1673960007514,0.14928049,21234.0,21232.0,0.32093]
[1673960007776,0.0745,21234.0,21233.0,0.32093]
[1673960008033,0.0745,21234.0,21228.0,0.660611]
[1673960008278,0.07478049,21233.0,21228.0,0.660611]
[1673960008553,0.07478049,21232.0,21229.0,0.32093]
[1673960008820,0.07478049,21232.0,21230.0,0.32093]
[1673960009102,0.04841935,21233.0,21231.0,0.32093]
[1673960009390,0.04841935,21233.0,21232.0,0.32093]
[1673960009644,0.0745,21234.0,21232.0,0.32093]
[1673960009898,0.0745,21234.0,21233.0,0.32093]
[1673960010194,0.0745,21234.0,21230.0,0.19147]
[1673960010460,0.14928049,21234.0,21230.0,0.19147]
[1673960010726,0.14928049,21234.0,21232.0,0.085]
[1673960011019,0.0755,21234.0,21233.0,0.32093]
[1673960011553,0.001,21234.0,21233.0,0.32093]
[1673960011821,0.96227132,21236.0,21233.0,0.32093]
[1673960012087,0.96227132,21236.0,21234.0,0.32093]
[1673960012088,0.05396263,21236.0,21234.0,0.32093]
[1673960012341,0.52037338,21235.0,21230.0,0.662498]
[1673960012597,0.42368675,21233.0,21229.0,0.20368378]
[1673960012869,0.14928049,21232.0,21227.0,0.96550714]
[1673960013125,0.07478049,21231.0,21228.0,0.32093]
[1673960013611,0.07478049,21231.0,21229.0,0.32093]
[1673960013887,0.5704,21232.0,21230.0,0.32093]
[1673960014164,0.5704,21232.0,21231.0,0.32093]
[1673960014702,0.0745,21232.0,21231.0,0.32093]
[1673960014910,0.0745,21232.0,21227.0,0.77450114]
[1673960015195,0.07478049,21231.0,21228.0,0.32093]
[1673960015457,0.07578049,21232.0,21231.0,0.084]
[1673960015728,1.38375975,21233.0,21231.0,0.32093]
[1673960016006,1.38375975,21233.0,21232.0,0.32093]
[1673960016267,0.89465975,21233.0,21228.0,0.665885]
[1673960016525,0.001,21232.0,21231.0,0.084]
[1673960016784,0.001,21232.0,21231.0,0.40493]
[1673960017045,0.001,21232.0,21231.0,0.875939]
[1673960017828,1.01947663,21236.0,21231.0,0.791939]
[1673960018124,0.001,21233.0,21232.0,0.51165595]
[1673960018385,1.01947663,21236.0,21232.0,0.32093]
[1673960018658,1.16005831,21236.0,21233.0,0.32093]
[1673960018917,1.16005831,21236.0,21233.0,0.19072595]
[1673960019170,1.16105831,21236.0,21231.0,0.941998]
[1673960019448,1.2358388,21236.0,21232.0,0.827915]
[1673960019708,1.16005831,21236.0,21233.0,0.32093]
[1673960020196,0.06017363,21236.0,21234.0,0.32093]
[1673960020199,0.06017363,21236.0,21234.0,0.791872]
[1673960020456,0.06017363,21236.0,21235.0,0.32093]
[1673960020729,0.01202099,21236.0,21235.0,0.32093]
[1673960021005,0.00402099,21236.0,21235.0,0.32093]
[1673960021795,0.01202099,21236.0,21235.0,0.51265595]
[1673960022073,0.01202099,21236.0,21235.0,1.26377]
[1673960022874,0.01202099,21236.0,21235.0,0.79285]
[1673960023452,0.00402099,21236.0,21235.0,0.79185]
[1673960024504,0.00502099,21236.0,21235.0,0.87585]
[1673960026427,0.00502099,21236.0,21235.0,1.64665733]
[1673960026984,0.00502099,21236.0,21235.0,1.34665733]
[1673960027242,0.00502099,21236.0,21235.0,1.64665733]
[1673960028082,0.00502099,21236.0,21235.0,2.47704411]
[1673960028337,0.00502099,21236.0,21235.0,2.33617448]
[1673960028596,0.00502099,21236.0,21235.0,2.47704411]
[1673960030420,0.0122,21240.0,21236.0,0.1]
[1673960030716,0.0122,21240.0,21237.0,2.34480965]
[1673960030968,0.0122,21240.0,21238.0,0.620913]
[1673960031225,0.0122,21240.0,21239.0,1.262575]
[1673960032293,0.0192,21240.0,21239.0,1.262575]
[1673960032560,0.0122,21240.0,21239.0,1.262575]
[1673960032829,0.0192,21240.0,21239.0,1.263575]
[1673960033933,0.0192,21240.0,21239.0,1.558575]
[1673960034477,0.0192,21240.0,21239.0,1.258575]
[1673960035245,0.0192,21240.0,21239.0,0.787744]
[1673960037342,0.0192,21240.0,21239.0,0.316913]
[1673960041442,0.0192,21240.0,21239.0,0.001]
[1673960042771,1.17669968,21240.0,21239.0,0.001]
[1673960043024,1.46274341,21240.0,21239.0,0.001]
[1673960043277,1.553018,21240.0,21239.0,0.001]
[1673960044850,1.76376173,21240.0,21239.0,0.001]
[1673960045373,1.90430353,21240.0,21239.0,0.001]
[1673960045888,1.553018,21240.0,21239.0,0.001]
[1673960046459,1.6935598,21240.0,21239.0,0.001]
[1673960046664,1.553018,21240.0,21239.0,0.001]
[1673960047949,1.111418,21240.0,21239.0,0.001]
[1673960049504,1.2519598,21240.0,21239.0,0.001]
[1673960049758,1.1766598,21240.0,21239.0,0.001]
[1673960050017,1.1013598,21240.0,21239.0,0.001]
[1673960050287,0.1597418,21240.0,21239.0,0.001]
[1673960050546,0.0112,21239.0,21237.0,0.941732]
[1673960050805,0.0112,21239.0,21238.0,0.320903]
[1673960051670,0.0112,21239.0,21238.0,0.791757]
[1673960051862,0.0112,21239.0,21238.0,1.76099039]
[1673960052115,0.0112,21239.0,21238.0,2.14223109]
[1673960052390,0.0112,21239.0,21238.0,2.21753109]
[1673960053158,0.0112,21239.0,21238.0,2.18153109]
[1673960053458,0.0122,21239.0,21238.0,2.26553109]
[1673960053978,0.0122,21239.0,21238.0,1.92029039]
[1673960055010,0.0122,21239.0,21238.0,2.26553109]
[1673960055796,0.0122,21239.0,21238.0,2.40640072]
[1673960056074,0.0122,21239.0,21238.0,2.96781685]
[1673960056338,0.0122,21239.0,21238.0,2.06116002]
[1673960056621,0.0122,21239.0,21238.0,1.92029039]
[1673960056890,0.0122,21239.0,21238.0,2.26553109]
[1673960059210,0.0122,21239.0,21238.0,3.31293497]
[1673960059549,0.0122,21239.0,21238.0,3.44935117]
[1673960059735,0.0005,21240.0,21239.0,0.02233225]
[1673960059989,0.0005,21240.0,21239.0,2.10523795]
[1673960060269,0.00428887,21242.0,21240.0,0.1]
[1673960060540,0.00428887,21242.0,21241.0,1.733264]
[1673960060824,0.00428887,21242.0,21241.0,2.033264]
[1673960061079,0.00428887,21242.0,21241.0,1.733264]
[1673960061599,0.00428887,21242.0,21241.0,1.262477]
[1673960062400,0.00428887,21242.0,21241.0,1.337777]
[1673960062655,0.00428887,21242.0,21241.0,1.94938817]
[1673960062907,0.00528887,21242.0,21241.0,1.818264]
[1673960065553,0.00528887,21242.0,21241.0,2.118264]
[1673960067592,0.00528887,21242.0,21241.0,1.818264]
[1673960069427,0.00528887,21242.0,21241.0,0.405903]
[1673960069955,0.00528887,21242.0,21241.0,0.87669]
[1673960073275,0.00528887,21242.0,21241.0,1.347477]
[1673960073792,0.00528887,21242.0,21241.0,1.721977]
[1673960075578,0.00528887,21242.0,21241.0,1.86280117]
[1673960076124,0.00528887,21242.0,21241.0,1.721977]
[1673960076618,0.00528887,21242.0,21241.0,2.0672177]
[1673960077430,0.00528887,21242.0,21241.0,2.20804187]
[1673960077954,0.00528887,21242.0,21241.0,2.0672177]
[1673960078203,0.00528887,21242.0,21241.0,1.721977]
[1673960078998,0.00528887,21242.0,21241.0,1.86280117]
[1673960079242,0.00528887,21242.0,21241.0,1.721977]
[1673960080316,0.00528887,21242.0,21241.0,2.192764]
[1673960080568,0.00528887,21242.0,21241.0,2.5380047]
[1673960080821,0.00528887,21242.0,21241.0,2.192764]
[1673960081074,0.00528887,21242.0,21241.0,3.24014229]
[1673960081342,0.00613065,21243.0,21242.0,0.11026665]
[1673960081607,0.00613065,21243.0,21242.0,2.0883831]
[1673960081859,0.00613065,21243.0,21242.0,1.9883831]
[1673960082362,0.00613065,21243.0,21242.0,1.84769593]
[1673960082965,0.00613065,21243.0,21242.0,1.94169593]
[1673960083155,0.00613065,21243.0,21242.0,1.84769593]
[1673960083401,0.00613065,21243.0,21242.0,1.94069593]
[1673960085494,0.00613065,21243.0,21242.0,2.0813831]
[1673960085703,0.00613065,21243.0,21242.0,1.7813831]
[1673960085949,0.00613065,21243.0,21242.0,1.94069593]
[1673960086443,0.00613065,21243.0,21242.0,2.0813831]
[1673960087453,0.00613065,21243.0,21242.0,2.98764185]
[1673960087701,0.00613065,21243.0,21242.0,1.94069593]
[1673960088477,0.00613065,21243.0,21242.0,2.61742408]
[1673960088735,0.00613065,21243.0,21242.0,3.05622259]
[1673960089252,0.00613065,21243.0,21242.0,3.54895414]
[1673960089755,0.00613065,21243.0,21242.0,3.33778348]
[1673960090012,0.00613065,21243.0,21242.0,3.54895055]
[1673960090277,1e-08,21245.0,21243.0,0.1]
[1673960090566,1e-08,21245.0,21244.0,1.808066]
[1673960090770,1e-08,21245.0,21244.0,2.108066]
[1673960091014,1e-08,21245.0,21244.0,3.15537112]
[1673960091767,1e-08,21245.0,21244.0,3.01452601]
[1673960092030,1e-08,21245.0,21244.0,3.15534851]
[1673960092276,1e-08,21245.0,21244.0,3.01452601]
[1673960092527,1e-08,21245.0,21244.0,3.15529185]
[1673960092815,1e-08,21245.0,21244.0,3.17329185]
[1673960093091,1e-08,21245.0,21244.0,2.26683184]
[1673960093306,1e-08,21245.0,21244.0,1.826066]
[1673960093801,1e-08,21245.0,21244.0,1.355345]
[1673960099225,1e-08,21245.0,21244.0,1.655345]
[1673960100492,1e-08,21245.0,21244.0,1.79611084]
[1673960101286,1e-08,21245.0,21244.0,2.28979595]
[1673960101546,0.00470537,21246.0,21244.0,2.28979595]
[1673960101547,0.00470537,21246.0,21245.0,0.08641999]
[1673960101805,0.00470537,21246.0,21245.0,1.61359593]
[1673960102058,0.00470537,21246.0,21245.0,2.55499193]
[1673960102581,0.00470537,21246.0,21245.0,2.91177517]
[1673960102839,0.00470537,21246.0,21245.0,1.72401899]
[1673960103130,0.00470537,21246.0,21245.0,3.00574962]
[1673960103398,0.02959139,21247.0,21246.0,0.25749699]
[1673960103581,0.02959139,21247.0,21246.0,1.23014802]
[1673960103885,0.02959139,21247.0,21246.0,1.41975199]
[1673960104685,0.02959139,21247.0,21246.0,1.51275199]
[1673960105422,0.02959139,21247.0,21246.0,1.41975199]
[1673960105643,0.02959139,21247.0,21246.0,1.51275199]
[1673960107529,0.02959139,21247.0,21246.0,1.6534512]
[1673960108322,0.02959139,21247.0,21246.0,1.81275199]
[1673960108833,0.02959139,21247.0,21246.0,1.9534512]
[1673960110108,0.02959139,21247.0,21246.0,1.51275199]
[1673960111201,0.02959139,21247.0,21246.0,1.034352]
[1673960111685,0.02959139,21247.0,21246.0,1.355255]
[1673960113207,0.02959139,21247.0,21246.0,1.655255]
[1673960113465,0.02959139,21247.0,21246.0,1.79595421]
[1673960114229,0.02959139,21247.0,21246.0,1.655255]
[1673960114479,0.02959139,21247.0,21246.0,1.355255]
[1673960117292,0.02959139,21247.0,21246.0,1.655255]
[1673960117832,0.02959139,21247.0,21246.0,2.00700303]
[1673960118068,0.02959139,21247.0,21246.0,2.7021365]
[1673960118607,0.02959139,21247.0,21246.0,1.655255]
[1673960119588,0.02959139,21247.0,21246.0,1.355255]
[1673960119846,0.02959139,21247.0,21246.0,1.49595421]
[1673960120359,0.02959139,21247.0,21246.0,1.355255]
[1673960120360,1e-08,21247.0,21246.0,1.355255]
[1673960124867,1e-08,21247.0,21246.0,1.49595421]
[1673960125122,1e-08,21247.0,21246.0,1.355255]
[1673960125381,1e-08,21247.0,21246.0,1.655255]
[1673960125896,1e-08,21247.0,21246.0,2.56143327]
[1673960126663,1e-08,21247.0,21246.0,1.655255]
[1673960128181,1e-08,21247.0,21246.0,2.56142694]
[1673960129009,1e-08,21247.0,21246.0,2.40227089]
[1673960129199,1e-08,21247.0,21246.0,1.49609895]
[1673960130314,1e-08,21247.0,21246.0,1.034352]
[1673960130561,1e-08,21247.0,21246.0,1.355255]
[1673960132097,1e-08,21247.0,21246.0,1.034352]
[1673960132866,1e-08,21247.0,21246.0,2.00714777]
[1673960133098,0.01394927,21247.0,21246.0,2.40228698]
[1673960133347,0.01394927,21247.0,21246.0,2.00714777]
[1673960133598,0.01394927,21247.0,21246.0,1.70714777]
[1673960134143,0.01394927,21247.0,21246.0,1.17519595]
[1673960134882,0.01394927,21247.0,21246.0,1.355255]
[1673960135390,0.01394927,21247.0,21246.0,1.034352]
[1673960136907,0.01394927,21247.0,21246.0,1.355255]
[1673960137161,0.01394927,21247.0,21246.0,1.17519595]
[1673960137417,0.01394927,21247.0,21246.0,1.49609895]
[1673960137705,0.01394927,21247.0,21246.0,1.70714777]
[1673960138212,0.01394927,21247.0,21246.0,2.84292946]
[1673960138477,0.01394927,21247.0,21246.0,2.63188064]
[1673960138735,0.01394927,21247.0,21246.0,2.84333329]
[1673960139305,0.01394927,21247.0,21246.0,2.98383175]
[1673960139504,0.01394927,21247.0,21246.0,2.99234332]
[1673960139773,0.01394927,21247.0,21246.0,1.8047425]
[1673960140792,0.01394927,21247.0,21246.0,1.5047425]
[1673960141912,0.01394927,21247.0,21246.0,2.27037487]
[1673960142171,0.01394927,21247.0,21246.0,1.363755]
[1673960142423,0.01394927,21247.0,21246.0,1.80480513]
[1673960142952,0.01394927,21247.0,21246.0,1.355255]
[1673960143249,0.01394927,21247.0,21246.0,2.27036108]
[1673960143505,0.01394927,21247.0,21246.0,2.34036308]
[1673960143763,0.05443737,21249.0,21247.0,0.31101309]
[1673960144019,0.05443737,21249.0,21248.0,2.16875621]
[1673960144284,0.00613065,21249.0,21248.0,1.41162099]
[1673960144752,0.00613065,21249.0,21248.0,2.31814569]
[1673960145284,0.00613065,21249.0,21248.0,0.949764]
[1673960145561,0.00613065,21249.0,21248.0,1.042764]
[1673960145811,0.09424065,21249.0,21248.0,0.563632]
[1673960146060,0.09424065,21249.0,21248.0,0.093]
[1673960146588,0.00613065,21249.0,21248.0,0.093]
[1673960149198,0.00613065,21249.0,21248.0,0.563632]
[1673960150869,0.00613065,21249.0,21248.0,1.034264]
[1673960151387,0.00613065,21249.0,21248.0,1.17521289]
[1673960152983,1e-08,21249.0,21248.0,1.38667726]
[1673960153754,1e-08,21249.0,21248.0,1.034264]
[1673960154277,1e-08,21249.0,21248.0,1.355167]
[1673960154847,1e-08,21249.0,21248.0,1.655167]
[1673960155650,1e-08,21249.0,21248.0,2.85214625]
[1673960155925,1e-08,21249.0,21248.0,2.9931225]
[1673960156179,1e-08,21249.0,21248.0,2.85212471]
[1673960156765,1e-08,21249.0,21248.0,2.77699756]
[1673960157274,1e-08,21249.0,21248.0,3.2152549]
[1673960157520,1e-08,21249.0,21248.0,3.63210282]
[1673960158020,1e-08,21249.0,21248.0,4.59944432]
[1673960158264,1e-08,21249.0,21248.0,3.2152549]
[1673960158524,1e-08,21249.0,21248.0,2.68399756]
[1673960158766,1e-08,21249.0,21248.0,3.1280712]
[1673960159040,1e-08,21249.0,21248.0,3.23127999]
[1673960159809,1e-08,21249.0,21248.0,3.26891205]
[1673960160054,1e-08,21249.0,21248.0,3.12792189]
[1673960161038,1e-08,21249.0,21248.0,2.77599756]
[1673960162269,1e-08,21249.0,21248.0,3.12791724]
[1673960163046,1e-08,21249.0,21248.0,2.77599756]
[1673960163612,1e-08,21249.0,21248.0,3.05757572]
[1673960163860,1e-08,21249.0,21248.0,3.40954842]
[1673960164440,1e-08,21249.0,21248.0,3.05757572]
[1673960164693,1e-08,21249.0,21248.0,3.40954842]
[1673960164983,1e-08,21249.0,21248.0,2.77599756]
[1673960165259,0.00515532,21251.0,21250.0,0.18641999]
[1673960165531,0.00515532,21251.0,21250.0,2.72018014]
[1673960165782,0.00515532,21251.0,21250.0,3.41524252]
[1673960166035,0.00515532,21251.0,21250.0,3.13376072]
[1673960166554,0.00515532,21251.0,21250.0,3.36747472]
[1673960167098,0.00515532,21251.0,21250.0,3.22676072]
[1673960167363,0.00515532,21251.0,21250.0,3.36745043]
[1673960167638,0.00515532,21251.0,21250.0,3.22676072]
[1673960167889,0.00515532,21251.0,21250.0,2.4613189]
[1673960168334,0.00515532,21251.0,21250.0,2.3613189]
[1673960168610,0.00515532,21251.0,21250.0,2.3338339]
[1673960168887,0.00515532,21251.0,21250.0,2.19310199]
[1673960169652,0.00515532,21251.0,21250.0,1.89310199]
[1673960169944,0.00515532,21251.0,21250.0,2.19310199]
[1673960170206,0.00515532,21251.0,21250.0,1.89310199]
[1673960170482,0.00515532,21251.0,21250.0,3.23990776]
[1673960170788,0.00515532,21251.0,21250.0,2.19310199]
[1673960172937,0.00515532,21251.0,21250.0,1.89310199]
[1673960173201,0.09326532,21251.0,21250.0,1.504764]
[1673960173453,0.00515532,21251.0,21250.0,1.034176]
[1673960176613,0.00515532,21251.0,21250.0,1.342676]
[1673960176880,0.00515532,21251.0,21250.0,1.042676]
[1673960177120,0.00515532,21251.0,21250.0,1.034176]
[1673960182043,0.00515532,21251.0,21250.0,1.17490791]
[1673960182283,0.00515532,21251.0,21250.0,1.034176]
[1673960183025,0.00515532,21251.0,21250.0,1.17490791]
[1673960183026,1e-08,21251.0,21250.0,1.17490791]
[1673960185704,1e-08,21251.0,21250.0,1.034176]
[1673960186201,1e-08,21251.0,21250.0,1.17490791]
[1673960186466,1e-08,21251.0,21250.0,1.034176]
[1673960190438,1e-08,21251.0,21250.0,1.17490791]
[1673960190683,1e-08,21251.0,21250.0,1.034176]
[1673960190938,1e-08,21251.0,21250.0,1.17490791]
[1673960191178,1e-08,21251.0,21250.0,1.034176]
[1673960191512,1e-08,21251.0,21250.0,1.334176]
[1673960191685,1e-08,21251.0,21250.0,2.08102277]
[1673960191923,1e-08,21251.0,21250.0,2.08102389]
[1673960192176,1e-08,21251.0,21250.0,1.034176]
[1673960192722,1e-08,21251.0,21250.0,2.52180071]
[1673960193229,1e-08,21251.0,21250.0,2.24031891]
[1673960193500,1e-08,21251.0,21250.0,1.334176]
[1673960193743,1e-08,21251.0,21250.0,1.48364439]
[1673960194004,1e-08,21251.0,21250.0,2.99189107]
[1673960194262,1e-08,21251.0,21250.0,2.38950627]
[1673960194509,1e-08,21251.0,21250.0,2.17866]
[1673960194754,1e-08,21251.0,21250.0,2.39016898]
[1673960195029,1e-08,21251.0,21250.0,2.71107198]
[1673960196785,1e-08,21251.0,21250.0,2.570066]
[1673960197292,1e-08,21251.0,21250.0,2.71040927]
[1673960197808,1e-08,21251.0,21250.0,2.38950627]
[1673960198057,1e-08,21251.0,21250.0,2.71040927]
[1673960198805,1e-08,21251.0,21250.0,2.85205092]
[1673960200917,1e-08,21251.0,21250.0,2.71040927]